bitfinex/quotes_BTCUSD_20241022
["timestamp","ask_amount","ask_price","bid_price","bid_amount"]
[1729606643128,0.148181,67485.0,67478.0,0.00222292]
[1729606643364,0.148177,67487.0,67485.0,0.003]
[1729606643595,0.01380351,67486.0,67485.0,0.003]
[1729606644063,0.01380366,67489.0,67485.0,0.003]
[1729606644064,0.16198051,67487.0,67485.0,0.003]
[1729606644313,0.16276266,67486.0,67485.0,0.003]
[1729606644572,0.01380351,67486.0,67485.0,0.1633]
[1729606644815,0.296303,67499.0,67485.0,0.00222263]
[1729606644816,0.14817,67490.0,67485.0,0.00222263]
[1729606645065,0.005,67490.0,67485.0,0.00222263]
[1729606645315,0.01380351,67489.0,67485.0,0.00222263]
[1729606645543,0.296331,67492.0,67487.0,0.00222263]
[1729606645772,0.005,67496.0,67487.0,0.00222263]
[1729606645773,0.14817,67490.0,67487.0,0.00222263]
[1729606646000,0.01380351,67489.0,67487.0,0.00222263]
[1729606646250,0.01380351,67488.0,67487.0,0.00222263]
[1729606646484,0.16276266,67489.0,67487.0,0.00222263]
[1729606647019,0.16197751,67488.0,67487.0,0.00222263]
[1729606647289,0.71781513,67488.0,67487.0,0.00222263]
[1729606647546,0.17656511,67488.0,67487.0,0.00222263]
[1729606647782,0.32473911,67488.0,67487.0,0.00222263]
[1729606648021,0.32473911,67488.0,67487.0,0.15039863]
[1729606648022,0.02760596,67488.0,67487.0,0.15039863]
[1729606648245,0.148176,67487.0,67478.0,0.296389]
[1729606648476,0.16276266,67486.0,67481.0,0.22226009]
[1729606648708,0.01380351,67485.0,67465.0,0.22226009]
[1729606648940,0.01380351,67484.0,67477.0,0.296396]
[1729606649172,0.01380351,67484.0,67472.0,0.2444861]
[1729606649173,0.01380351,67483.0,67473.0,0.296414]
[1729606649426,0.01380351,67484.0,67477.0,0.296394]
[1729606649664,0.16198851,67483.0,67472.0,0.22226009]
[1729606649895,0.17579096,67483.0,67477.0,0.148196]
[1729606650140,0.02760596,67483.0,67479.0,0.148193]
[1729606650371,0.01380351,67483.0,67479.0,0.148193]
[1729606650629,0.02760596,67484.0,67482.0,0.22226009]
[1729606650875,0.01380302,67496.0,67488.0,0.002]
[1729606651129,0.1112164,67518.0,67507.0,0.148132]
[1729606651130,0.01380051,67515.0,67507.0,0.148132]
[1729606651395,0.01380044,67513.0,67507.0,0.148132]
[1729606651658,0.01380044,67515.0,67507.0,0.148132]
[1729606651880,0.02760082,67515.0,67507.0,0.148132]
[1729606652104,0.16191644,67515.0,67507.0,0.148132]
[1729606652369,0.01380044,67515.0,67507.0,0.148132]
[1729606652871,0.00084,67518.0,67507.0,0.148132]
[1729606653113,0.00084,67518.0,67507.0,0.151132]
[1729606654085,0.00084,67518.0,67507.0,0.15409429]
[1729606654308,0.00084,67518.0,67507.0,0.15109429]
[1729606654611,0.00084,67518.0,67507.0,0.15409429]
[1729606654834,0.00084,67518.0,67507.0,0.22675882]
[1729606655334,0.00084,67518.0,67507.0,0.38571797]
[1729606655608,0.00084,67518.0,67507.0,0.38075568]
[1729606656101,0.00084,67518.0,67507.0,0.37975568]
[1729606656332,0.00084,67518.0,67507.0,0.38275568]
[1729606656564,0.00084,67518.0,67507.0,0.38075568]
[1729606656801,0.00084,67518.0,67507.0,0.37475568]
[1729606657033,0.00084,67518.0,67507.0,0.22679653]
[1729606657264,0.00084,67518.0,67507.0,0.22675865]
[1729606657728,0.00084,67518.0,67507.0,0.37975568]
[1729606657967,0.00084,67518.0,67507.0,0.47675568]
[1729606658219,0.00084,67518.0,67507.0,0.67905568]
[1729606658442,0.00084,67518.0,67507.0,0.68005568]
[1729606658913,0.00084,67518.0,67507.0,0.70505568]
[1729606659164,0.00084,67518.0,67507.0,0.70305568]
[1729606659390,0.00084,67518.0,67507.0,0.70105568]
[1729606659613,0.00084,67518.0,67507.0,0.70005568]
[1729606659858,0.00084,67518.0,67507.0,0.70205568]
[1729606660099,0.00084,67518.0,67507.0,0.67705568]
[1729606660333,0.00084,67518.0,67507.0,0.48675568]
[1729606660593,0.00084,67518.0,67507.0,0.49075568]
[1729606660841,0.00084,67518.0,67507.0,0.47575568]
[1729606661088,0.0137453,67533.0,67507.0,0.48275568]
[1729606661320,0.14895915,67533.0,67529.0,0.148084]
[1729606661563,0.29703715,67532.0,67529.0,6e-05]
[1729606661817,0.09895915,67532.0,67529.0,6e-05]
[1729606662325,0.148071,67535.0,67529.0,0.148142]
[1729606662580,0.44510615,67534.0,67529.0,6e-05]
[1729606662822,0.14895915,67534.0,67529.0,6e-05]
[1729606663330,0.00084,67536.0,67531.0,0.14808]
[1729606663560,0.00084,67536.0,67531.0,6e-05]
[1729606663799,0.14895915,67535.0,67531.0,6e-05]
[1729606664018,0.152077,67532.0,67531.0,6e-05]
[1729606664269,0.14895915,67532.0,67531.0,6e-05]
[1729606664521,0.00084,67536.0,67531.0,6e-05]
[1729606664809,0.00684,67536.0,67535.0,0.148071]
[1729606665038,0.00684,67536.0,67535.0,0.148131]
[1729606665529,0.00684,67536.0,67535.0,0.37039109]
[1729606665822,0.00084,67536.0,67535.0,0.37039109]
[1729606666073,0.00784,67536.0,67535.0,0.39385906]
[1729606666302,0.00084,67536.0,67535.0,0.39385906]
[1729606666540,0.00084,67536.0,67535.0,0.52216254]
[1729606666795,0.00084,67536.0,67535.0,0.57535906]
[1729606667033,0.00084,67536.0,67535.0,0.149131]
[1729606667297,0.00084,67536.0,67535.0,6e-05]
[1729606667753,0.00084,67536.0,67535.0,0.00106]
[1729606668017,0.00084,67536.0,67535.0,0.00406]
[1729606668270,0.00084,67536.0,67535.0,0.00106]
[1729606668539,0.00084,67536.0,67535.0,0.00406]
[1729606668761,0.148909,67536.0,67535.0,6e-05]
[1729606669015,0.340509,67536.0,67535.0,6e-05]
[1729606669254,0.340509,67536.0,67535.0,0.00106]
[1729606669255,0.00084,67536.0,67535.0,0.00106]
[1729606669479,0.148909,67536.0,67535.0,0.00106]
[1729606669742,0.148909,67536.0,67535.0,6e-05]
[1729606669743,0.00084,67536.0,67535.0,6e-05]
[1729606669968,0.00184,67536.0,67535.0,6e-05]
[1729606670477,0.00084,67536.0,67535.0,6e-05]
[1729606671450,0.00084,67536.0,67535.0,0.00306]
[1729606671871,0.00084,67536.0,67535.0,6e-05]
[1729606672374,0.00084,67536.0,67535.0,0.00106]
[1729606672591,0.00084,67536.0,67535.0,0.00206]
[1729606672818,0.00084,67536.0,67535.0,0.00106]
[1729606673062,0.00084,67536.0,67535.0,6e-05]
[1729606673329,0.00584,67536.0,67535.0,6e-05]
[1729606673848,0.00584,67536.0,67526.0,0.22226009]
[1729606673849,0.00584,67536.0,67529.0,0.148083]
[1729606674095,0.00584,67536.0,67527.0,0.296177]
[1729606674344,0.00584,67536.0,67530.0,0.09496666]
[1729606674595,0.00984,67536.0,67530.0,0.09496666]
[1729606674840,0.00584,67536.0,67530.0,0.09496666]
[1729606675074,0.00584,67536.0,67530.0,0.00222076]
[1729606675298,0.00084,67536.0,67531.0,0.22226009]
[1729606675554,0.148072,67535.0,67530.0,0.00222076]
[1729606675801,0.00084,67536.0,67530.0,0.00222076]
[1729606676040,0.00084,67536.0,67530.0,0.001]
[1729606676270,0.00084,67536.0,67519.0,0.22226009]
[1729606676521,0.00084,67536.0,67527.0,0.22226009]
[1729606676755,0.25593892,67529.0,67524.0,0.00222114]
[1729606676996,0.14895915,67535.0,67528.0,0.22226009]
[1729606677264,0.14895915,67535.0,67526.0,0.001652]
[1729606677532,0.148081,67531.0,67526.0,0.001652]
[1729606677753,0.14895915,67535.0,67527.0,0.22226009]
[1729606677981,0.148074,67534.0,67527.0,0.22226009]
[1729606678214,0.14895915,67535.0,67527.0,0.22226009]
[1729606678457,0.15695915,67535.0,67528.0,0.001]
[1729606678716,0.148074,67534.0,67527.0,0.22226009]
[1729606678952,0.148074,67534.0,67527.0,0.22326009]
[1729606679217,0.65996384,67528.0,67527.0,0.001]
[1729606679442,0.165088,67527.0,67526.0,0.0011326]
[1729606679669,4.90344656,67527.0,67526.0,0.0011326]
[1729606679898,0.40404492,67519.0,67518.0,0.22226009]
[1729606680136,0.148124,67511.0,67505.0,0.22226009]
[1729606680386,0.40407292,67506.0,67505.0,0.22226009]
[1729606680619,0.40407292,67506.0,67493.0,0.22226009]
[1729606680620,0.148161,67494.0,67493.0,0.22226009]
[1729606680863,0.41790933,67494.0,67493.0,0.22226009]
[1729606681388,0.41790933,67494.0,67481.0,0.001652]
[1729606681389,0.25593892,67494.0,67481.0,0.001652]
[1729606681617,0.015,67497.0,67489.0,0.22226009]
[1729606681618,0.17665583,67493.0,67489.0,0.22226009]
[1729606681841,0.17665583,67493.0,67481.0,0.001652]
[1729606681842,0.25593892,67490.0,67481.0,0.001652]
[1729606682079,0.17665583,67489.0,67486.0,0.22226009]
[1729606682317,0.17665583,67489.0,67482.0,0.00222254]
[1729606682318,0.25593892,67498.0,67493.0,0.001]
[1729606682550,0.296252,67511.0,67493.0,0.001]
[1729606682551,0.162161,67494.0,67493.0,0.001]
[1729606682795,0.03680694,67494.0,67493.0,0.002]
[1729606683310,0.02780694,67494.0,67493.0,0.001]
[1729606683535,0.014,67494.0,67493.0,0.001]
[1729606683752,0.162161,67494.0,67493.0,0.001]
[1729606683992,0.296324,67494.0,67487.0,0.22226009]
[1729606684218,0.296317,67496.0,67482.0,0.00222254]
[1729606684219,0.296353,67487.0,67482.0,0.00222254]
[1729606684446,0.40412192,67484.0,67483.0,0.002652]
[1729606684671,0.40412192,67484.0,67483.0,0.001652]
[1729606685417,0.40412192,67484.0,67459.0,0.0807]
[1729606685418,0.005,67480.0,67466.0,0.22226009]
[1729606685645,0.150205,67474.0,67473.0,0.22226009]
[1729606685879,0.150205,67474.0,67466.0,0.22226009]
[1729606685880,0.14822,67467.0,67466.0,0.22226009]
[1729606686108,4.88655578,67467.0,67466.0,0.22226009]
[1729606686339,0.148225,67465.0,67451.0,0.22226009]
[1729606686602,0.31097078,67465.0,67451.0,0.22226009]
[1729606687104,0.31097078,67465.0,67451.0,0.37051409]
[1729606687402,4.88656078,67465.0,67458.0,0.001676]
[1729606687642,4.97946078,67465.0,67458.0,0.001676]
[1729606687880,0.165238,67459.0,67458.0,0.001676]
[1729606688114,5.29008723,67459.0,67458.0,0.001676]
[1729606688349,5.2783006,67459.0,67458.0,0.001676]
[1729606688601,0.148268,67445.0,67440.0,0.001654]
[1729606688890,5.2663306,67445.0,67440.0,0.001654]
[1729606689125,5.28006456,67445.0,67440.0,0.001654]
[1729606689355,0.148277,67441.0,67440.0,0.001654]
[1729606689596,0.29723615,67441.0,67440.0,0.001654]
[1729606690316,0.296543,67444.0,67440.0,0.001654]
[1729606690546,0.29723615,67441.0,67440.0,0.00010718]
[1729606691008,0.30223615,67441.0,67440.0,0.00010718]
[1729606691989,0.017,67441.0,67440.0,0.00110718]
[1729606692233,0.012,67441.0,67440.0,0.00010718]
[1729606692510,0.005,67449.0,67440.0,0.00010718]
[1729606692793,0.14895915,67449.0,67441.0,0.153276]
[1729606693013,0.14895915,67449.0,67441.0,0.005]
[1729606693272,0.005,67458.0,67440.0,0.00010718]
[1729606693273,0.148243,67457.0,67449.0,0.148259]
[1729606693540,0.296449,67466.0,67456.0,0.005]
[1729606693769,0.148238,67459.0,67456.0,0.005]
[1729606694012,0.14895915,67465.0,67456.0,0.005]
[1729606694271,0.148206,67474.0,67466.0,0.148221]
[1729606694539,0.296428,67470.0,67461.0,0.005]
[1729606694785,0.39351345,67471.0,67462.0,0.22226009]
[1729606694786,0.148224,67466.0,67462.0,0.22226009]
[1729606695057,0.148218,67468.0,67462.0,0.22226009]
[1729606695295,0.148221,67467.0,67462.0,0.22226009]
[1729606695521,0.14895915,67468.0,67461.0,0.005]
[1729606695522,0.148229,67463.0,67461.0,0.005]
[1729606695750,0.444663,67467.0,67461.0,0.005]
[1729606695975,0.148229,67463.0,67462.0,0.003]
[1729606696243,0.148242,67457.0,67456.0,0.001]
[1729606696508,0.29645,67465.0,67452.0,0.22726009]
[1729606696509,0.148233,67461.0,67460.0,0.22226009]
[1729606696763,0.14895915,67461.0,67452.0,0.22726009]
[1729606697009,0.14895915,67460.0,67452.0,0.22726009]
[1729606697237,0.14895915,67460.0,67453.0,0.14825]
[1729606697494,0.14895915,67460.0,67452.0,0.22726009]
[1729606697495,0.296448,67466.0,67456.0,0.001]
[1729606697757,0.298388,67480.0,67462.0,0.005]
[1729606697758,0.148196,67478.0,67462.0,0.005]
[1729606698013,0.22152009,67477.0,67463.0,0.005]
[1729606698276,0.148214,67470.0,67463.0,0.005]
[1729606698530,0.14895915,67470.0,67463.0,0.005]
[1729606699521,0.148217,67469.0,67463.0,0.005]
[1729606699759,0.14895915,67469.0,67456.0,0.005]
[1729606699985,0.148231,67462.0,67461.0,0.22226009]
[1729606700222,0.148231,67462.0,67455.0,0.005]
[1729606700223,0.14895915,67462.0,67455.0,0.005]
[1729606700456,0.01621906,67468.0,67452.0,0.22726009]
[1729606700457,0.16385507,67461.0,67452.0,0.22726009]
[1729606700687,0.14895915,67468.0,67461.0,0.005]
[1729606700914,0.44540015,67467.0,67455.0,0.005]
[1729606701143,0.148229,67464.0,67455.0,0.005]
[1729606701397,0.14895915,67463.0,67452.0,0.22391009]
[1729606701898,0.01367578,67468.0,67456.0,0.005]
[1729606701900,0.01367578,67468.0,67459.0,0.005]
[1729606702151,0.003,67462.0,67459.0,0.005]
[1729606702631,0.148225,67465.0,67459.0,0.005]
[1729606702854,0.44540015,67467.0,67459.0,0.005]
[1729606702855,0.14895915,67467.0,67459.0,0.005]
[1729606703097,0.29718015,67467.0,67459.0,0.005]
[1729606703346,0.148225,67465.0,67459.0,0.005]
[1729606703567,0.16190794,67466.0,67459.0,0.005]
[1729606703809,0.148227,67464.0,67459.0,0.005]
[1729606704040,0.148234,67461.0,67459.0,0.005]
[1729606704309,0.002,67462.0,67459.0,0.005]
[1729606704742,0.002,67462.0,67461.0,0.00222347]
[1729606704969,0.06293319,67462.0,67455.0,0.005]
[1729606705229,0.002,67462.0,67458.0,0.005]
[1729606705449,0.002,67462.0,67454.0,0.005]
[1729606705712,0.148237,67460.0,67454.0,0.005]
[1729606705958,0.001,67462.0,67457.0,0.148241]
[1729606706183,0.001,67462.0,67458.0,0.14824]
[1729606706407,0.001,67462.0,67452.0,0.52041709]
[1729606706408,0.01372479,67461.0,67452.0,0.22891009]
[1729606706647,0.002,67472.0,67452.0,0.22891009]
[1729606706648,0.39351345,67456.0,67452.0,0.00165]
[1729606706915,0.29720515,67455.0,67454.0,0.001]
[1729606707137,0.31092994,67455.0,67454.0,0.001]
[1729606707367,0.148251,67453.0,67452.0,0.00165]
[1729606707603,0.31093494,67453.0,67452.0,0.00165]
[1729606708309,0.58134053,67453.0,67452.0,0.00165]
[1729606709055,0.58140046,67453.0,67452.0,0.00165]
[1729606709290,0.58140046,67453.0,67452.0,0.00265]
[1729606709291,5.1910868,67453.0,67452.0,0.00265]
[1729606709574,5.23205265,67453.0,67452.0,0.00019324]
[1729606710033,1.77246265,67453.0,67452.0,0.00019324]
[1729606710266,0.9644968,67453.0,67452.0,0.00019324]
[1729606710504,0.148277,67441.0,67440.0,0.00010718]
[1729606710723,0.56764214,67441.0,67440.0,0.00010718]
[1729606710950,5.1791128,67441.0,67440.0,0.00010718]
[1729606711396,0.58142646,67441.0,67440.0,0.00010718]
[1729606711867,0.58942646,67441.0,67440.0,0.00110718]
[1729606712139,0.58942646,67441.0,67440.0,0.00010718]
[1729606712140,0.58142646,67441.0,67440.0,0.00010718]
[1729606712363,0.61159682,67441.0,67440.0,0.00010718]
[1729606712581,0.59649059,67441.0,67440.0,0.00110718]
[1729606712815,0.61159424,67441.0,67440.0,0.00010718]
[1729606713038,0.58149059,67441.0,67440.0,0.00010718]
[1729606713526,5.16508059,67441.0,67440.0,0.00010718]
[1729606713750,5.18719237,67441.0,67440.0,0.00010718]
[1729606714207,5.19419237,67441.0,67440.0,0.00010718]
[1729606714429,5.18719237,67441.0,67440.0,0.00010718]
[1729606714877,5.19419237,67441.0,67440.0,0.00010718]
[1729606715103,5.19619237,67441.0,67440.0,0.00010718]
[1729606715580,5.22767831,67441.0,67440.0,0.00010718]
[1729606715899,5.22067831,67441.0,67440.0,0.00010718]
[1729606716107,5.24171934,67441.0,67440.0,0.00010718]
[1729606716331,0.002,67434.0,67428.0,0.001654]
[1729606716544,0.40492567,67429.0,67428.0,0.001654]
[1729606716755,0.44458433,67429.0,67428.0,0.001654]
[1729606716978,0.44458433,67429.0,67426.0,0.001652]
[1729606716979,0.150308,67427.0,67426.0,0.001652]
[1729606717264,0.150308,67427.0,67416.0,0.22226009]
[1729606717265,0.14833,67417.0,67416.0,0.22226009]
[1729606717480,5.00820033,67417.0,67416.0,0.22226009]
[1729606717709,5.00820033,67417.0,67409.0,0.22226009]
[1729606717710,0.158332,67416.0,67409.0,0.22226009]
[1729606717930,5.03266673,67416.0,67410.0,0.22226009]
[1729606718159,5.03266673,67416.0,67402.0,0.22226009]
[1729606718160,5.33617431,67416.0,67402.0,0.22226009]
[1729606718390,5.37760766,67416.0,67402.0,0.22226009]
[1729606718597,5.33790008,67416.0,67402.0,0.22226009]
[1729606718809,0.148361,67403.0,67402.0,0.22226009]
[1729606719028,0.55394182,67403.0,67402.0,0.22226009]
[1729606719255,5.15717239,67403.0,67402.0,0.22226009]
[1729606719496,0.148374,67397.0,67396.0,0.001678]
[1729606719738,0.56776606,67397.0,67396.0,0.001678]
[1729606719987,5.39997773,67397.0,67396.0,0.001678]
[1729606720211,5.14335606,67397.0,67396.0,0.001678]
[1729606720447,2.36376606,67397.0,67396.0,0.001678]
[1729606720658,1.60776606,67397.0,67396.0,0.001678]
[1729606721091,1.20576606,67397.0,67396.0,0.001678]
[1729606721522,1.21376606,67397.0,67396.0,0.001678]
[1729606722179,0.148381,67394.0,67385.0,0.0125822]
[1729606722411,4.88674139,67394.0,67385.0,0.0125822]
[1729606722635,4.88668781,67394.0,67385.0,0.0125822]
[1729606722840,4.92639539,67394.0,67385.0,0.0125822]
[1729606723057,4.88668781,67394.0,67385.0,0.0125822]
[1729606723786,0.80609781,67394.0,67385.0,0.0125822]
[1729606724028,0.53771681,67394.0,67387.0,0.005]
[1729606724253,0.17271681,67394.0,67390.0,0.148389]
[1729606724486,0.17271681,67394.0,67385.0,0.0175822]
[1729606724487,0.15895915,67394.0,67385.0,0.0175822]
[1729606724727,0.17271681,67394.0,67387.0,0.005]
[1729606724936,0.59071948,67394.0,67385.0,0.0175822]
[1729606725152,0.58071948,67394.0,67385.0,0.0175822]
[1729606725391,0.56771948,67394.0,67386.0,0.148396]
[1729606725616,0.58071948,67394.0,67385.0,0.0175822]
[1729606725835,0.58071948,67394.0,67385.0,0.0125822]
[1729606726049,0.56771948,67394.0,67385.0,0.0125822]
[1729606726470,0.32109781,67394.0,67385.0,0.0125822]
[1729606726683,0.32109781,67394.0,67385.0,0.1609822]
[1729606726919,0.33109781,67394.0,67385.0,0.1609822]
[1729606727185,0.33109781,67394.0,67386.0,0.148397]
[1729606727502,0.33109781,67394.0,67387.0,0.148396]
[1729606727725,0.33109781,67394.0,67386.0,0.005]
[1729606727956,0.58771948,67394.0,67385.0,0.0125822]
[1729606728386,5.16330948,67394.0,67385.0,0.0125822]
[1729606728684,5.52993115,67394.0,67385.0,0.0125822]
[1729606728939,5.56163873,67394.0,67385.0,0.0125822]
[1729606729455,0.005,67386.0,67385.0,0.0125822]
[1729606729686,0.6727072,67386.0,67385.0,0.0125822]
[1729606729913,5.2482972,67386.0,67385.0,0.0125822]
[1729606730599,5.2432972,67386.0,67385.0,0.0125822]
[1729606730824,5.2482972,67386.0,67385.0,0.0125822]
[1729606731087,0.6867072,67386.0,67385.0,0.0125822]
[1729606731322,5.2622972,67386.0,67385.0,0.0125822]
[1729606731558,0.17668753,67386.0,67385.0,0.0125822]
[1729606731783,0.32535715,67386.0,67385.0,0.0125822]
[1729606732014,0.33908553,67386.0,67385.0,0.0125822]
[1729606732529,0.32508553,67386.0,67385.0,0.0125822]
[1729606733014,0.30135715,67386.0,67385.0,0.0125822]
[1729606733249,0.31508599,67386.0,67385.0,0.0125822]
[1729606733476,0.32308599,67386.0,67385.0,0.0125822]
[1729606733954,0.31508599,67386.0,67385.0,0.0125822]
[1729606734439,0.31108599,67386.0,67385.0,0.0125822]
[1729606734933,0.32008599,67386.0,67385.0,0.0125822]
[1729606735129,0.16768799,67386.0,67385.0,0.0125822]
[1729606735408,0.01372884,67388.0,67385.0,0.1609822]
[1729606735657,0.01372884,67391.0,67390.0,0.148389]
[1729606735889,0.01372884,67391.0,67389.0,0.148391]
[1729606735890,0.01374731,67391.0,67389.0,0.148391]
[1729606736140,0.01374722,67390.0,67389.0,0.148391]
[1729606736879,0.01374722,67390.0,67389.0,0.153391]
[1729606737132,0.14895915,67403.0,67395.0,0.005]
[1729606737365,0.26162167,67412.0,67399.0,0.005]
[1729606737665,0.14836,67404.0,67399.0,0.005]
[1729606737908,0.2967,67409.0,67399.0,0.005]
[1729606737909,0.01376752,67403.0,67399.0,0.22726009]
[1729606738155,0.296713,67406.0,67399.0,0.22726009]
[1729606738156,0.01376752,67402.0,67399.0,0.37562909]
[1729606738383,0.01376752,67401.0,67399.0,0.005]
[1729606738624,0.01376752,67400.0,67399.0,0.005]
[1729606739109,0.01376752,67400.0,67399.0,0.15337]
[1729606739637,0.01376752,67400.0,67394.0,0.296759]
[1729606739638,0.41934834,67400.0,67391.0,0.005]
[1729606739867,0.41934834,67400.0,67393.0,0.22226009]
[1729606739868,0.2343342,67399.0,67393.0,0.22226009]
[1729606740094,0.31051152,67398.0,67393.0,0.22226009]
[1729606740322,0.16272667,67397.0,67393.0,0.22226009]
[1729606740551,0.01376752,67396.0,67392.0,0.00222551]
[1729606740782,0.01376752,67395.0,67394.0,0.005]
[1729606741025,0.01376752,67395.0,67394.0,0.153381]
[1729606741566,0.01376752,67395.0,67391.0,0.005]
[1729606741821,0.148369,67400.0,67394.0,0.153381]
[1729606742041,0.16217258,67399.0,67394.0,0.005]
[1729606742269,0.001,67395.0,67394.0,0.005]
[1729606742792,0.001,67395.0,67383.0,0.29681]
[1729606742793,0.01381165,67395.0,67391.0,0.005]
[1729606743074,0.25662167,67392.0,67386.0,0.22226009]
[1729606743310,0.148398,67386.0,67385.0,0.0142362]
[1729606743556,0.3111688,67386.0,67385.0,0.0142362]
[1729606743847,0.32499396,67386.0,67385.0,0.0142362]
[1729606744113,4.90058396,67386.0,67385.0,0.0142362]
[1729606744346,4.92273047,67386.0,67385.0,0.0142362]
[1729606744598,4.93173047,67386.0,67385.0,0.0142362]
[1729606744829,0.148409,67381.0,67380.0,0.22226009]
[1729606745067,0.3112033,67381.0,67380.0,0.22226009]
[1729606745329,0.148411,67380.0,67379.0,0.001652]
[1729606745563,0.32503046,67380.0,67379.0,0.001652]
[1729606745799,5.00562046,67380.0,67379.0,0.001652]
[1729606746045,5.02277481,67380.0,67379.0,0.001652]
[1729606746309,0.34718481,67380.0,67379.0,0.001652]
[1729606747083,0.02766031,67380.0,67379.0,0.001652]
[1729606747312,0.16224615,67380.0,67379.0,0.001652]
[1729606747538,0.17524615,67380.0,67379.0,0.001652]
[1729606747789,0.16224615,67380.0,67379.0,0.001652]
[1729606748024,0.01383515,67380.0,67379.0,0.150066]
[1729606748326,0.02583515,67380.0,67379.0,0.155066]
[1729606748565,0.03883515,67380.0,67379.0,0.155066]
[1729606749059,0.02583515,67380.0,67379.0,0.15803407]
[1729606749289,0.02583515,67380.0,67379.0,0.156066]
[1729606749525,0.01383515,67380.0,67379.0,0.156066]
[1729606749759,0.01383515,67380.0,67379.0,0.99160545]
[1729606749760,0.01983515,67380.0,67379.0,0.99160545]
[1729606750022,0.02217648,67410.0,67406.0,0.005]
[1729606750023,0.01382516,67410.0,67406.0,0.005]
[1729606750256,0.27047746,67416.0,67406.0,0.005]
[1729606750497,0.148337,67414.0,67406.0,0.005]
[1729606750750,0.25662167,67412.0,67406.0,0.005]
[1729606751014,0.148345,67410.0,67406.0,0.005]
[1729606751276,0.01385579,67411.0,67404.0,0.148356]
[1729606751505,0.14895915,67409.0,67404.0,0.22226009]
[1729606751730,0.29730715,67409.0,67405.0,0.148355]
[1729606752211,0.14895915,67409.0,67406.0,0.148353]
[1729606752440,0.14895915,67409.0,67404.0,0.22226009]
[1729606752441,0.29730715,67409.0,67404.0,0.148357]
[1729606752673,0.29730715,67409.0,67406.0,0.004]
[1729606752867,0.14895915,67409.0,67406.0,0.004]
[1729606753150,0.148352,67407.0,67405.0,0.002]
[1729606753392,0.14895915,67409.0,67405.0,0.007]
[1729606753617,0.29731315,67406.0,67405.0,0.002]
[1729606754272,0.31115046,67406.0,67405.0,0.002]
[1729606754544,0.148373,67398.0,67395.0,0.00222566]
[1729606754773,0.14895915,67398.0,67395.0,0.00222566]
[1729606755011,0.25662167,67401.0,67395.0,0.00222566]
[1729606755012,0.148376,67396.0,67395.0,0.00222566]
[1729606755246,0.40558082,67396.0,67384.0,0.005]
[1729606755513,0.445157,67392.0,67391.0,0.22226009]
[1729606755743,0.445157,67392.0,67384.0,0.005]
[1729606755744,0.14895915,67392.0,67385.0,0.2968]
[1729606755963,0.296762,67394.0,67386.0,0.148397]
[1729606755964,0.148391,67390.0,67386.0,0.148397]
[1729606756190,0.148391,67390.0,67387.0,0.148394]
[1729606756191,0.14895915,67390.0,67387.0,0.148394]
[1729606756446,0.14895915,67390.0,67389.0,0.148392]
[1729606756690,0.14895915,67390.0,67386.0,0.296797]
[1729606756691,0.148377,67396.0,67388.0,0.005]
[1729606756918,0.14895915,67395.0,67391.0,0.148387]
[1729606757151,0.148381,67394.0,67387.0,0.148395]
[1729606757416,0.25662167,67388.0,67379.0,0.001652]
[1729606757643,0.25662167,67392.0,67379.0,0.001652]
[1729606757644,0.40503267,67380.0,67379.0,0.001652]
[1729606758152,0.25662167,67380.0,67379.0,0.001652]
[1729606758384,0.148411,67380.0,67379.0,0.001652]
[1729606758605,0.55399182,67380.0,67379.0,0.001652]
[1729606758834,5.14342215,67380.0,67379.0,0.001652]
[1729606759549,5.14442215,67380.0,67379.0,0.001652]
[1729606760254,5.14442215,67380.0,67379.0,0.003652]
[1729606760255,5.33785255,67380.0,67379.0,0.003652]
[1729606760503,5.27156656,67380.0,67379.0,0.001652]
[1729606760731,5.52841015,67380.0,67379.0,0.001652]
[1729606760965,5.53241015,67380.0,67379.0,0.001652]
[1729606761214,1.92609279,67380.0,67379.0,0.001652]
[1729606761467,0.59151466,67380.0,67379.0,0.001652]
[1729606761706,0.3966672,67380.0,67379.0,0.002652]
[1729606761926,0.32504888,67380.0,67379.0,0.001652]
[1729606762375,0.32504888,67380.0,67379.0,0.002652]
[1729606762376,0.34404888,67380.0,67379.0,0.002652]
[1729606762626,0.38837253,67380.0,67379.0,0.002652]
[1729606762881,0.38837135,67380.0,67379.0,0.002652]
[1729606763163,0.57299182,67380.0,67379.0,0.002652]
[1729606763415,0.58682792,67380.0,67379.0,0.002652]
[1729606763641,0.60066416,67380.0,67379.0,0.002652]
[1729606763865,0.57682792,67380.0,67379.0,0.002652]
[1729606764096,0.61215039,67380.0,67379.0,0.001652]
[1729606764326,0.61815039,67380.0,67379.0,0.001652]
[1729606764549,0.7541193,67380.0,67379.0,0.001652]
[1729606764765,0.74428464,67380.0,67379.0,0.001652]
[1729606765007,0.69166249,67380.0,67379.0,0.001652]
[1729606765242,0.93390593,67380.0,67379.0,0.001652]
[1729606765747,0.38036475,67380.0,67379.0,0.001652]
[1729606765983,0.33204082,67380.0,67379.0,0.001652]
[1729606766245,0.34504082,67380.0,67379.0,0.002652]
[1729606766751,0.34504082,67380.0,67379.0,0.001652]
[1729606766752,0.31820625,67380.0,67379.0,0.001652]
[1729606767237,0.33203756,67380.0,67379.0,0.001652]
[1729606767457,0.31120625,67380.0,67379.0,0.001652]
[1729606767698,0.3390389,67380.0,67379.0,0.002652]
[1729606768169,0.31620625,67380.0,67379.0,0.002652]
[1729606768391,0.31620625,67380.0,67379.0,0.001652]
[1729606768392,0.31120625,67380.0,67379.0,0.001652]
[1729606768635,0.31820625,67380.0,67379.0,0.002652]
[1729606768859,0.32320625,67380.0,67379.0,0.003652]
[1729606769115,0.31120625,67380.0,67379.0,0.001652]
[1729606769360,0.31120625,67380.0,67379.0,0.003652]
[1729606769361,5.0161206,67380.0,67379.0,0.003652]
[1729606769617,5.0161206,67380.0,67379.0,0.002652]
[1729606769618,4.97577799,67380.0,67379.0,0.002652]
[1729606769834,4.96577799,67380.0,67379.0,0.002652]
[1729606770062,1.11165414,67380.0,67379.0,0.003652]
[1729606770281,1.01365414,67380.0,67379.0,0.003652]